[Event "Stockholm Chess Challenge 2019"]
[Site "Stockholm"]
[Date "2019.04.28"]
[Round "4.6"]
[White "Ojas Kulkarni"]
[Black "Kenneskog, Theodor"]
[Result "1/2-1/2"]
[ECO "A37"]
[WhiteElo "2240"]
[BlackElo "2306"]
[Annotator "NA"]
[PlyCount "61"]
[EventDate "2019.04.26"]
[EventType "swiss"]
[EventCountry "SWE"]
[SourceTitle "playchess.com"]
[Source "ChessBase"]
[SourceQuality "1"]
[TimeControl "40/5400+30:900+30"]

1. c4 {[%emt 0:00:00]} c5 {[%emt 0:00:00]} 2. g3 {[%emt 0:00:20]} g6 {[%emt 0:00:00]} 3. Bg2 {[%emt 0:00:04]} Bg7 {[%emt 0:00:00]} 4. Nc3 {[%emt 0:00:05]} Nc6 $11 {[%emt 0:00:00]} 5. Nf3 {[%emt 0:01:11]} d6 {[%emt 0:00:00]} 6. O-O {[%emt 0:00:05]} e5 {[%emt 0:00:12]} 7. a3 {[%emt 0:00:06]} Nge7 {[%emt 0:00:23]} 8. b4 {[%emt 0:00:22]} e4 {[%emt 0:03:04]} 9. Ne1 {[%emt 0:00:57]} f5 {[%emt 0:00:19]} 10. Bb2 {[%emt 0:01:15]} Be6 {[%emt 0:00:30]} 11. d3 {[%emt 0:09:48]} O-O {[%emt 0:05:27]} 12. dxe4 {[%emt 0:11:06]} fxe4 {[%emt 0:07:31]} 13. Bxe4 {[%emt 0:01:20]} Bxc4 {[%emt 0:00:48]} 14. Na4 {[%emt 0:03:15]} Bxb2 {[%emt 0:14:11]} 15. Nxb2 {[%emt 0:00:17]} Bf7 {[%emt 0:00:19]} 16. Bg2 {[%emt 0:07:19]} Rb8 {[%emt 0:03:21]} 17. Qd2 {[%emt 0:07:32]} Qc7 {[%emt 0:03:08]} 18. Rc1 {[%emt 0:01:35]} b6 {[%emt 0:00:31]} 19. Ned3 {[%emt 0:01:14]} Rfd8 {[%emt 0:14:08]} 20. Nf4 {[%emt 0:08:26]} a5 {[%emt 0:00:39]} 21. Bh3 {[%emt 0:06:10]} axb4 {[%emt 0:13:19]} 22. axb4 {[%emt 0:00:21]} Rf8 {[%emt 0:00:26]} 23. Rfd1 {[%emt 0:06:11]} Rbd8 {[%emt 0:01:36]} 24. Be6 {[%emt 0:01:24]} Qb8 {[%emt 0:05:55]} 25. Bxf7+ {[%emt 0:07:57]} Rxf7 {[%emt 0:00:03]} 26. Ne6 {[%emt 0:00:10]} Re8 {[%emt 0:00:14]} 27. Qxd6 {[%emt 0:10:11]} Nxb4 {[%emt 0:00:15]} 28. Nc4 {[%emt 0:04:02]} Nf5 {[%emt 0:03:27]} 29. Qxb8 {[%emt 0:01:42]} Rxb8 {[%emt 0:00:02]} 30. e4 {[%emt 0:00:07]} Ng7 {[%emt 0:00:17]} 31. Nf4 {[%emt 0:03:12]} 1/2-1/2

[Event "Stockholm Chess Challenge 2019"]
[Site "Stockholm"]
[Date "2019.04.28"]
[Round "4.7"]
[White "Jogstad, Martin"]
[Black "Sivaji Baskar S"]
[Result "1-0"]
[ECO "E92"]
[WhiteElo "2267"]
[BlackElo "1630"]
[Annotator "NA"]
[PlyCount "57"]
[EventDate "2019.04.26"]
[EventType "swiss"]
[EventCountry "SWE"]
[SourceTitle "playchess.com"]
[Source "ChessBase"]
[SourceQuality "1"]
[TimeControl "40/5400+30:900+30"]

1. d4 {[%emt 0:00:00]} Nf6 {[%emt 0:00:00]} 2. c4 {[%emt 0:00:01]} g6 {[%emt 0:00:29]} 3. Nc3 {[%emt 0:00:06]} Bg7 {[%emt 0:00:05]} 4. e4 {[%emt 0:00:06]} d6 {[%emt 0:00:05]} 5. Be2 {[%emt 0:00:07]} O-O $14 {[%emt 0:00:06]} 6. Nf3 {[%emt 0:00:08]} e5 {[%emt 0:00:04]} 7. d5 {[%emt 0:00:06]} a5 {[%emt 0:00:04]} 8. Bg5 {[%emt 0:00:07]} h6 {[%emt 0:00:06]} 9. Be3 {[%emt 0:00:07]} Ng4 {[%emt 0:00:08]} 10. Bd2 {[%emt 0:00:06]} f5 {[%emt 0:00:15]} 11. h3 {[%emt 0:00:16]} Nf6 {[%emt 0:00:08]} 12. exf5 {[%emt 0:00:06]} gxf5 {[%emt 0:01:10]} 13. Qc1 {[%emt 0:00:06]} Kh7 {[%emt 0:06:31]} 14. g4 {[%emt 0:00:27]} Ne4 {[%emt 0:10:34]} 15. Nxe4 {[%emt 0:02:38]} fxe4 {[%emt 0:00:02]} 16. Qc2 {[%emt 0:01:11]} Nd7 {[%emt 0:05:21]} 17. Qxe4+ {[%emt 0:01:03]} Kg8 {[%emt 0:00:07]} 18. Be3 {[%emt 0:08:16]} Nc5 {[%emt 0:09:59]} 19. Bxc5 {[%emt 0:07:11]} dxc5 {[%emt 0:01:03]} 20. Bd3 {[%emt 0:08:18]} Rf4 {[%emt 0:01:20]} 21. Qe3 {[%emt 0:03:49]} Qf6 {[%emt 0:04:06]} 22. Nd2 {[%emt 0:03:23]} Qb6 {[%emt 0:02:47]} 23. Ne4 {[%emt 0:10:20]} Qxb2 {[%emt 0:08:01]} 24. Rb1 {[%emt 0:00:19]} Qd4 {[%emt 0:00:02]} 25. Nxc5 {[%emt 0:10:38]} Qc3+ {[%emt 0:04:30]} 26. Ke2 {[%emt 0:00:49]} Qa3 {[%emt 0:00:38]} 27. Bh7+ {[%emt 0:00:26]} Kxh7 {[%emt 0:02:55]} 28. Qxa3 {[%emt 0:00:21]} b6 {[%emt 0:00:13]} 29. Ne6 {[%emt 0:03:04]} 1-0

[Event "Stockholm Chess Challenge 2019"]
[Site "Stockholm"]
[Date "2019.04.28"]
[Round "4.7"]
[White "Ojas Kulkarni"]
[Black "Kenneskog, Theodor"]
[Result "*"]
[ECO "E92"]
[WhiteElo "2240"]
[BlackElo "2306"]
[Annotator "NA"]
[PlyCount "35"]
[EventDate "2019.04.26"]
[EventType "swiss"]
[EventCountry "SWE"]
[SourceTitle "playchess.com"]
[Source "ChessBase"]
[SourceQuality "1"]
[TimeControl "40/5400+30:900+30"]

1. d4 {[%emt 0:00:00]} Nf6 {[%emt 0:00:00]} 2. c4 {[%emt 0:00:01]} g6 {[%emt 0:00:29]} 3. Nc3 {[%emt 0:00:06]} Bg7 {[%emt 0:00:05]} 4. e4 {[%emt 0:00:06]} d6 {[%emt 0:00:05]} 5. Be2 {[%emt 0:00:07]} O-O $14 {[%emt 0:00:06]} 6. Nf3 {[%emt 0:00:08]} e5 {[%emt 0:00:04]} 7. d5 {[%emt 0:00:06]} a5 {[%emt 0:00:04]} 8. Bg5 {[%emt 0:00:07]} h6 {[%emt 0:00:06]} 9. Be3 {[%emt 0:00:07]} Ng4 {[%emt 0:00:08]} 10. Bd2 {[%emt 0:00:06]} f5 {[%emt 0:00:15]} 11. h3 {[%emt 0:00:16]} Nf6 {[%emt 0:00:08]} 12. exf5 {[%emt 0:00:06]} gxf5 {[%emt 0:01:10]} 13. Qc1 {[%emt 0:00:06]} Kh7 {[%emt 0:06:31]} 14. g4 {[%emt 0:00:27]} Ne4 {[%emt 0:10:34]} 15. Nxe4 {[%emt 0:02:38]} fxe4 {[%emt 0:00:02]} 16. Qc2 {[%emt 0:01:11]} Nd7 {[%emt 0:05:21]} 17. Qxe4+ {[%emt 0:01:03]} Kg8 {[%emt 0:00:07]} 18. Be3 {[%emt 0:08:16]} *

[Event "Stockholm Chess Challenge 2019"]
[Site "Stockholm"]
[Date "2019.04.28"]
[Round "4.9"]
[White "Trost, Edvin"]
[Black "Crevatin, Leo"]
[Result "1-0"]
[ECO "A05"]
[WhiteElo "2075"]
[BlackElo "2208"]
[Annotator "NA"]
[PlyCount "78"]
[EventDate "2019.04.26"]
[EventType "swiss"]
[EventCountry "SWE"]
[SourceTitle "playchess.com"]
[Source "ChessBase"]
[SourceQuality "1"]
[TimeControl "40/5400+30:900+30"]

1. Nf3 {[%emt 0:00:00]} Nf6 {[%emt 0:04:54]} 2. e3 {[%emt 0:00:00]} d5 {[%emt 0:00:36]} 3. b3 {[%emt 0:00:00]} Bg4 {[%emt 0:00:57]} 4. Bb2 {[%emt 0:00:32]} e6 {[%emt 0:02:09]} 5. h3 {[%emt 0:01:21]} Bh5 {[%emt 0:03:08]} 6. Be2 {[%emt 0:00:17]} Nbd7 {[%emt 0:04:10]} 7. c4 {[%emt 0:03:16]} c6 {[%emt 0:00:46]} 8. O-O {[%emt 0:01:41]} Qc7 {[%emt 0:03:58]} 9. Nc3 {[%emt 0:00:30]} Rd8 {[%emt 0:03:01]} 10. Re1 {[%emt 0:00:56]} Bd6 {[%emt 0:01:47]} 11. d4 {[%emt 0:01:26]} O-O {[%emt 0:01:43]} 12. Qc2 {[%emt 0:01:45]} Rfe8 {[%emt 0:08:34]} 13. Rad1 {[%emt 0:04:35]} Bg6 {[%emt 0:08:21]} 14. Bd3 {[%emt 0:00:49]} e5 {[%emt 0:07:08]} 15. Bxg6 {[%emt 0:06:18]} hxg6 {[%emt 0:00:12]} 16. cxd5 {[%emt 0:02:57]} e4 {[%emt 0:04:43]} 17. Ne5 {[%emt 0:35:13]} cxd5 {[%emt 0:07:56]} 18. Nxd7 {[%emt 0:00:20]} Qxd7 {[%emt 0:00:32]} 19. Qe2 {[%emt 0:01:04]} Rc8 {[%emt 0:08:12]} 20. Rc1 {[%emt 0:01:06]} Rc6 {[%emt 0:03:54]} 21. Nb5 {[%emt 0:03:23]} Bb8 {[%emt 0:02:44]} 22. Rxc6 {[%emt 0:00:54]} bxc6 {[%emt 0:00:08]} 23. Nc3 {[%emt 0:00:16]} Qd6 {[%emt 0:01:16]} 24. g3 {[%emt 0:00:16]} Nh5 {[%emt 0:02:51]} 25. Rd1 {[%emt 0:11:17]} Re6 {[%emt 0:04:22]} 26. Qe1 {[%emt 0:02:03]} g5 {[%emt 0:02:14]} 27. Ne2 {[%emt 0:01:38]} f5 {[%emt 0:00:20]} 28. Bc1 {[%emt 0:00:35]} Qf8 {[%emt 0:03:10]} 29. Qf1 {[%emt 0:01:01]} f4 {[%emt 0:01:49]} 30. g4 {[%emt 0:03:33]} f3 {[%emt 0:03:10]} 31. gxh5 {[%emt 0:00:21]} fxe2 {[%emt 0:00:05]} 32. Qxe2 {[%emt 0:00:06]} Rf6 {[%emt 0:02:31]} 33. Qf1 {[%emt 0:05:56]} Rf3 {[%emt 0:00:37]} 34. Qg2 {[%emt 0:00:08]} Qd6 {[%emt 0:01:46]} 35. Rd2 {[%emt 0:03:18]} Rf6 {[%emt 0:01:20]} 36. Kf1 {[%emt 0:01:15]} Qb4 {[%emt 0:02:16]} 37. Ke1 {[%emt 0:01:04]} Qc3 {[%emt 0:00:38]} 38. Kd1 {[%emt 0:00:06]} Bd6 {[%emt 0:00:26]} 39. Qxg5 {[%emt 0:01:27]} Qa1 1-0

[Event "Stockholm Chess Challenge 2019"]
[Site "Stockholm"]
[Date "2019.04.28"]
[Round "5.3"]
[White "Siddharth, Jagadeesh"]
[Black "Jogstad, Martin"]
[Result "0-1"]
[ECO "A06"]
[WhiteElo "2132"]
[BlackElo "2267"]
[Annotator "ChessBase"]
[PlyCount "112"]
[EventDate "2019.04.26"]
[EventType "swiss"]
[EventCountry "SWE"]
[SourceTitle "playchess.com"]
[Source "ChessBase"]
[SourceQuality "1"]
[TimeControl "40/5400+30:900+30"]

1. Nf3 {[%emt 0:00:00]} d5 {[%emt 0:00:00]} 2. c4 {[%emt 0:00:34]} c6 {[%emt 0:00:00]} 3. g3 {[%emt 0:00:10]} Nf6 {[%emt 0:00:00]} 4. Bg2 {[%emt 0:00:07]} Bf5 {[%emt 0:00:10]} 5. Qb3 {[%emt 0:00:11]} Qb6 {[%emt 0:00:50]} 6. d3 {[%emt 0:00:58]} e6 {[%emt 0:00:49]} 7. Be3 {[%emt 0:00:13]} dxc4 {[%emt 0:09:16]} 8. dxc4 {[%emt 0:06:06]} Qxb3 {[%emt 0:02:20]} 9. axb3 {[%emt 0:00:53]} Nbd7 {[%emt 0:00:59]} 10. Nbd2 {[%emt 0:00:51]} Bc5 {[%emt 0:02:52]} 11. Bxc5 {[%emt 0:04:29]} Nxc5 {[%emt 0:00:10]} 12. Nh4 {[%emt 0:00:07]} Be4 {[%emt 0:22:10]} 13. Nxe4 {[%emt 0:00:31]} Ncxe4 {[%emt 0:00:13]} 14. O-O {[%emt 0:10:41]} Nd2 {[%emt 0:07:10]} 15. Rfd1 {[%emt 0:00:08]} O-O-O {[%emt 0:00:34]} 16. Re1 {[%emt 0:13:44]} a6 {[%emt 0:11:30]} 17. Ra3 {[%emt 0:03:57]} g5 {[%emt 0:00:24]} 18. Nf3 {[%emt 0:00:32]} Nxf3+ {[%emt 0:00:10]} 19. Bxf3 {[%emt 0:02:33]} g4 {[%emt 0:00:20]} 20. Bg2 {[%emt 0:00:39]} Rd2 {[%emt 0:00:25]} 21. Ra2 {[%emt 0:08:42]} Rhd8 {[%emt 0:00:30]} 22. e4 {[%emt 0:01:42]} Nd7 {[%emt 0:03:14]} 23. Ra5 {[%emt 0:08:43]} Rxb2 {[%emt 0:01:57]} 24. Rg5 {[%emt 0:00:11]} Rxb3 {[%emt 0:03:11]} 25. Rxg4 {[%emt 0:00:07]} Ne5 {[%emt 0:04:16]} 26. Rg7 {[%emt 0:00:27]} Rb2 {[%emt 0:02:18]} 27. Rxh7 {[%emt 0:00:56]} a5 {[%emt 0:02:11]} 28. Rh5 {[%emt 0:11:05]} Ng4 {[%emt 0:04:05]} 29. h3 {[%emt 0:08:41]} Nxf2 {[%emt 0:01:01]} 30. Rxa5 {[%emt 0:02:37]} Rdd2 {[%emt 0:02:02]} 31. Ra8+ {[%emt 0:01:36]} Kc7 {[%emt 0:03:04]} 32. Rf1 {[%emt 0:01:12]} f5 {[%emt 0:07:25]} 33. exf5 {[%emt 0:04:26]} exf5 {[%emt 0:00:14]} 34. Rf8 {[%emt 0:00:08]} Ng4 {[%emt 0:01:59]} 35. Bh1 {[%emt 0:02:08]} Nf2 {[%emt 0:01:50]} 36. Bg2 {[%emt 0:00:05]} Nd1 {[%emt 0:02:42]} 37. Bf3 {[%emt 0:00:26]} Ne3 {[%emt 0:01:04]} 38. Re1 {[%emt 0:00:46]} Nc2 {[%emt 0:00:17]} 39. Rf1 {[%emt 0:02:17]} Nd4 {[%emt 0:00:09]} 40. h4 {[%emt 0:00:31]} Rb3 {[%emt 0:03:53]} 41. Bg2 {[%emt 0:18:44]} Rxg3 {[%emt 0:05:18]} 42. Rf2 {[%emt 0:00:00]} Nf3+ {[%emt 0:01:38]} 43. Rxf3 {[%emt 0:00:00]} Rgxg2+ {[%emt 0:01:17]} 44. Kh1 {[%emt 0:00:00]} Rh2+ {[%emt 0:02:34]} 45. Kg1 {[%emt 0:00:00]} Rxh4 {[%emt 0:00:32]} 46. Rf7+ {[%emt 0:00:00]} Rd7 {[%emt 0:00:34]} 47. R3xf5 {[%emt 0:00:00]} Rxc4 {[%emt 0:00:27]} 48. Rxd7+ {[%emt 0:00:00]} Kxd7 {[%emt 0:00:04]} 49. Rf7+ {[%emt 0:00:00]} Kc8 {[%emt 0:00:09]} 50. Kf2 {[%emt 0:00:00]} Re4 {[%emt 0:00:09]} 51. Kf3 {[%emt 0:00:00]} Re8 {[%emt 0:00:07]} 52. Kf2 {[%emt 0:00:00]} Kb8 {[%emt 0:00:08]} 53. Kf3 {[%emt 0:00:00]} Ka7 {[%emt 0:00:04]} 54. Kf2 {[%emt 0:00:00]} Kb6 {[%emt 0:00:05]} 55. Kf3 {[%emt 0:00:00]} Re6 {[%emt 0:00:08]} 56. Kf2 {[%emt 0:00:00]} c5 {[%emt 0:00:06]} 0-1

[Event "Stockholm Chess Challenge 2019"]
[Site "Stockholm"]
[Date "2019.04.28"]
[Round "5.5"]
[White "Dev, Shah"]
[Black "Ojas Kulkarni"]
[Result "1/2-1/2"]
[ECO "D85"]
[WhiteElo "2020"]
[BlackElo "2240"]
[Annotator "NA"]
[PlyCount "52"]
[EventDate "2019.04.26"]
[EventType "swiss"]
[EventCountry "SWE"]
[SourceTitle "playchess.com"]
[Source "ChessBase"]
[SourceQuality "1"]
[TimeControl "40/5400+30:900+30"]

1. d4 {[%emt 0:00:19]} Nf6 {[%emt 0:00:00]} 2. c4 {[%emt 0:00:09]} g6 {[%emt 0:00:00]} 3. Nc3 {[%emt 0:00:14]} d5 {[%emt 0:00:06]} 4. cxd5 {[%emt 0:00:11]} Nxd5 {[%emt 0:00:07]} 5. e4 {[%emt 0:00:15]} Nxc3 {[%emt 0:00:04]} 6. bxc3 {[%emt 0:00:10]} Bg7 {[%emt 0:00:20]} 7. Nf3 {[%emt 0:00:10]} c5 {[%emt 0:00:44]} 8. Be3 {[%emt 0:00:07]} Qa5 {[%emt 0:02:09]} 9. Nd2 {[%emt 0:00:18] D85: Exchange Grünfeld: Unusual White 7th moves and lines with 7 Nf3} Bd7 {[%emt 0:01:01]} 10. Rb1 {[%emt 0:03:36]} cxd4 {[%emt 0:06:31]} 11. Nc4 $146 {[%emt 0:03:15]} ({Predecessor:} 11. cxd4 Nc6 12. Rb5 Qc3 13. Rb3 Qa5 14. Rb5 Qc3 15. Rb3 Qa5 {½-½ (15) Korobov,A (2689)-Najer,E (2683) Novi Sad 2016}) 11... Qa4 {[%emt 0:03:07]} 12. cxd4 {[%emt 0:03:59]} Qxd1+ {[%emt 0:00:14]} 13. Kxd1 {[%emt 0:02:34]} O-O {[%emt 0:03:26]} 14. Bd3 {[%emt 0:06:05]} b6 {[%emt 0:02:02]} 15. f4 {[%emt 0:06:20]} Rd8 {[%emt 0:16:48]} 16. Kd2 {[%emt 0:27:00]} e6 {[%emt 0:28:47]} 17. Rhc1 {[%emt 0:09:08]} Be8 {[%emt 0:00:12]} 18. Ne5 {[%emt 0:02:17]} Bxe5 {[%emt 0:04:09]} 19. fxe5 {[%emt 0:05:03]} Nc6 {[%emt 0:00:11]} 20. Rc4 {[%emt 0:00:39]} Na5 {[%emt 0:01:50]} 21. Rc7 {[%emt 0:07:11]} Nc6 {[%emt 0:00:19]} 22. Bb5 {[%emt 0:00:43]} Nxd4 {[%emt 0:02:20]} 23. Bxe8 {[%emt 0:00:13]} Nb5+ {[%emt 0:00:02]} 24. Rd7 {[%emt 0:00:03]} Na3 {[%emt 0:00:09]} 25. Rc1 {[%emt 0:10:04]} Rxe8 $11 {[%emt 0:00:46]} 26. Rcc7 {[%emt 0:04:57]} Red8 {[%emt 0:01:12]} 1/2-1/2

[Event "Stockholm Chess Challenge 2019"]
[Site "Stockholm"]
[Date "2019.04.28"]
[Round "5.6"]
[White "Kvaloy, Aksel Bu"]
[Black "Kucuksari, Kaan"]
[Result "0-1"]
[ECO "B41"]
[WhiteElo "2138"]
[BlackElo "2301"]
[Annotator "NA"]
[PlyCount "110"]
[EventDate "2019.04.26"]
[EventType "swiss"]
[EventCountry "SWE"]
[SourceTitle "playchess.com"]
[Source "ChessBase"]
[SourceQuality "1"]
[TimeControl "40/5400+30:900+30"]

1. e4 {[%emt 0:00:00]} c5 {[%emt 0:00:11]} 2. Nf3 {[%emt 0:00:00]} e6 {[%emt 0:00:05]} 3. d4 {[%emt 0:00:01]} cxd4 {[%emt 0:00:05]} 4. Nxd4 {[%emt 0:00:06]} a6 {[%emt 0:00:02]} 5. c4 {[%emt 0:00:18]} Nf6 {[%emt 0:00:04]} 6. Nc3 {[%emt 0:00:08]} Qc7 {[%emt 0:00:04]} 7. Be2 {[%emt 0:00:38]} b6 {[%emt 0:02:37]} 8. O-O {[%emt 0:02:49]} Bb7 {[%emt 0:00:09]} 9. Qd3 {[%emt 0:02:02]} d6 {[%emt 0:03:50]} 10. f4 {[%emt 0:02:16]} Nbd7 {[%emt 0:00:07]} 11. b4 {[%emt 0:00:33]} g6 {[%emt 0:05:09] B41: Sicilian: Kan Variation: 5 c4} (11... d5 12. exd5 Bxb4 13. dxe6 Nc5 14. exf7+ Kxf7 15. Qh3 Bxc3 16. Qxc3 Rhe8 17. Bf3 Nce4 18. Qb4 Rad8 19. Be3 {½-½ (31) Muzychuk,M (2540)-Adhiban,B (2689) Caleta 2019}) 12. Bb2 {[%emt 0:03:02]} Bg7 {[%emt 0:05:41]} 13. Rac1 {[%emt 0:02:21]} O-O {[%emt 0:00:26]} 14. Nd5 $146 {[%emt 0:10:01]} ({Predecessor:} 14. Ba1 Rac8 15. Nc2 Rfd8 16. Ne3 Qb8 17. g4 Ne8 18. g5 f6 19. h4 {1-0 (30) Moenster,M (1898)-Flach,H (1812) Willingen 2018}) 14... exd5 {[%emt 0:08:57]} 15. cxd5 {[%emt 0:00:49]} Qd8 {[%emt 0:00:02]} 16. Nc6 {[%emt 0:00:33]} Qe8 {[%emt 0:00:06]} 17. Bf3 {[%emt 0:06:00]} Nh5 {[%emt 0:05:49]} 18. Bxg7 {[%emt 0:04:39]} Nxg7 {[%emt 0:00:05]} 19. Rfe1 {[%emt 0:02:17]} f6 {[%emt 0:06:00]} 20. Qd4 {[%emt 0:07:07]} h5 {[%emt 0:10:22]} 21. a4 {[%emt 0:05:18]} Qf7 {[%emt 0:01:55]} 22. a5 {[%emt 0:02:51]} b5 {[%emt 0:00:44]} 23. g3 {[%emt 0:03:17]} Kh7 {[%emt 0:07:43]} 24. Re2 {[%emt 0:05:20]} Ne5 {[%emt 0:01:27]} 25. fxe5 {[%emt 0:19:43]} fxe5 {[%emt 0:00:03]} 26. Qe3 {[%emt 0:00:58]} Qxf3 {[%emt 0:02:33]} 27. Qxf3 {[%emt 0:00:13]} Rxf3 {[%emt 0:00:02]} 28. Ne7 {[%emt 0:00:12]} Ne8 {[%emt 0:01:47]} 29. Rec2 {[%emt 0:06:32]} Rf7 {[%emt 0:12:13]} 30. Nc8 {[%emt 0:02:07]} Kg7 {[%emt 0:02:36]} 31. Nb6 {[%emt 0:01:23]} Rb8 {[%emt 0:00:20]} 32. Kg2 {[%emt 0:02:29]} Nf6 {[%emt 0:01:04]} 33. Rc7 {[%emt 0:02:15]} Rbf8 {[%emt 0:00:22]} 34. Rxf7+ $19 {[%emt 0:04:52]} Rxf7 {[%emt 0:00:07]} 35. Re1 {[%emt 0:00:37]} Rc7 {[%emt 0:00:03]} 36. Re2 {[%emt 0:01:57]} Ng4 {[%emt 0:04:09]} 37. h3 {[%emt 0:01:47]} Rc2 {[%emt 0:00:09]} 38. Kf1 {[%emt 0:00:41]} Rxe2 {[%emt 0:00:13]} 39. Kxe2 {[%emt 0:00:08]} Nf6 {[%emt 0:00:09]} 40. Kf3 {[%emt 0:00:21]} Kf7 {[%emt 0:00:28]} 41. h4 {[%emt 0:16:09]} Ke7 {[%emt 0:15:04]} 42. Ke3 {[%emt 0:00:07]} Kd8 {[%emt 0:01:32]} 43. Kf3 {[%emt 0:00:17]} Kc7 {[%emt 0:00:38]} 44. Ke3 {[%emt 0:00:18]} Nd7 {[%emt 0:00:38]} 45. Nxd7 {[%emt 0:00:20]} Kxd7 {[%emt 0:00:01]} 46. Kf3 {[%emt 0:00:32]} Ke7 {[%emt 0:00:04]} 47. g4 {[%emt 0:00:35]} hxg4+ {[%emt 0:00:07]} 48. Kxg4 {[%emt 0:00:05]} Kf6 {[%emt 0:00:01]} 49. Kf3 {[%emt 0:00:56]} g5 {[%emt 0:00:17]} 50. hxg5+ {[%emt 0:00:07]} Kxg5 {[%emt 0:00:05]} 51. Kg3 {[%emt 0:00:05]} Bc8 {[%emt 0:00:07]} 52. Kf3 {[%emt 0:00:15]} Kh4 {[%emt 0:00:05]} 53. Kf2 {[%emt 0:00:18]} Kg4 {[%emt 0:00:03]} 54. Ke3 {[%emt 0:00:06]} Kg3 55. Kd2 Kf4 {[%emt 0:02:30]} 0-1

[Event "Stockholm Chess Challenge 2019"]
[Site "Stockholm"]
[Date "2019.04.28"]
[Round "5.7"]
[White "Kenneskog, Theodor"]
[Black "Sivaji Baskar S"]
[Result "0-1"]
[ECO "E71"]
[WhiteElo "2306"]
[BlackElo "1630"]
[Annotator "NA"]
[PlyCount "70"]
[EventDate "2019.04.26"]
[EventType "swiss"]
[EventCountry "SWE"]
[SourceTitle "playchess.com"]
[Source "ChessBase"]
[SourceQuality "1"]
[TimeControl "40/5400+30:900+30"]

1. d4 {[%emt 0:00:00]} Nf6 {[%emt 0:00:53]} 2. c4 {[%emt 0:00:00]} g6 {[%emt 0:00:20]} 3. Nc3 {[%emt 0:00:00]} Bg7 {[%emt 0:00:09]} 4. e4 {[%emt 0:00:00]} d6 {[%emt 0:00:23]} 5. h3 {[%emt 0:00:00]} O-O {[%emt 0:00:07]} 6. Be3 {[%emt 0:00:00]} e5 {[%emt 0:00:44]} 7. d5 {[%emt 0:00:02]} c6 {[%emt 0:01:50]} 8. g4 {[%emt 0:02:30] E71: King's Indian: 4 e4 d6 5 h3} (8. Nf3 a5 9. g4 Na6 10. Nd2 Nc5 11. Be2 Qc7 12. h4 Nfd7 13. h5 a4 14. g5 Qa5 15. a3 Rb8 16. Qc2 cxd5 17. Nxd5 Re8 18. hxg6 fxg6 19. O-O-O {0-1 (84) Anton Guijarro,D (2650)-Firouzja,A (2456) Doha 2016}) 8... cxd5 {[%emt 0:01:16]} 9. cxd5 {[%emt 0:00:07]} Bd7 $146 {[%emt 0:03:27]} ({Predecessor:} 9... Nbd7 10. Nge2 Nc5 11. Ng3 Qa5 12. f3 h6 13. g5 hxg5 14. Bxg5 b5 15. Be2 b4 {0-1 (35) Mladenovic,A (1953)-Stanojevic,M (2055) Belgrade 2018}) 10. Nge2 {[%emt 0:01:39]} b5 {[%emt 0:00:21]} 11. Ng3 {[%emt 0:00:06]} b4 {[%emt 0:07:56]} 12. Nb1 {[%emt 0:02:17]} a5 {[%emt 0:03:19]} 13. Nd2 {[%emt 0:01:09]} Na6 {[%emt 0:30:16]} 14. Nc4 {[%emt 0:09:26]} Nc5 {[%emt 0:02:42]} 15. f3 {[%emt 0:00:57]} Ba4 {[%emt 0:08:24]} 16. b3 {[%emt 0:05:29]} Be8 {[%emt 0:00:31]} 17. Rc1 {[%emt 0:00:58]} Rc8 {[%emt 0:00:46]} 18. g5 {[%emt 0:06:42]} Nh5 {[%emt 0:00:44]} 19. Nxh5 {[%emt 0:00:05]} gxh5 {[%emt 0:00:06]} 20. h4 {[%emt 0:00:11]} f5 {[%emt 0:03:33]} 21. exf5 {[%emt 0:00:21]} Rxf5 {[%emt 0:00:23]} 22. Bh3 {[%emt 0:00:34]} Bg6 {[%emt 0:03:26]} 23. O-O {[%emt 0:07:06]} Rf8 {[%emt 0:11:54]} 24. Bxc8 {[%emt 0:10:10]} Qxc8 {[%emt 0:00:09]} 25. Kh2 {[%emt 0:00:25]} Nd3 {[%emt 0:06:58]} 26. Nb2 {[%emt 0:17:25]} Nxc1 {[%emt 0:00:16]} 27. Bxc1 {[%emt 0:00:57]} e4 {[%emt 0:02:15]} 28. Nc4 {[%emt 0:00:54]} exf3 {[%emt 0:00:58]} 29. Rxf3 {[%emt 0:00:03]} Be4 {[%emt 0:00:20]} 30. Rxf8+ {[%emt 0:00:52]} Qxf8 {[%emt 0:00:02]} 31. Be3 $2 {[%emt 0:04:24]} (31. Kg3 $1 $11) 31... Qf7 {[%emt 0:02:10]} 32. Kg1 {[%emt 0:01:40] [#]} Bxd5 $17 {[%emt 0:02:13]} (32... Bf3 $1 $19 {[%cal Rf3d1]} 33. Qf1 Qf5) 33. Nxd6 {[%emt 0:09:30]} Qe6 {[%emt 0:00:13]} 34. Bf4 {[%emt 0:08:09]} Bd4+ {[%emt 0:00:27]} 35. Kh2 {[%emt 0:00:06]} Be5 {[%emt 0:00:08]} 0-1